Cogmind - Beta 10.2 @@@ ROGUE MODE // 2021.01.10 @ 22:30:24 Player: cptwinky Result: Destroyed by D-53 Grenadier with Mini Grenade Launcher Performance ------------- Evolutions (0) 0 Regions Visited (2) 400 Robots Destroyed (28) 140 Value Destroyed (596) 596 Prototype IDs (5) 100 Alien Tech Used (0) 0 Bonus (0) 0 TOTAL SCORE: 1236 Bonus ------- None Cogmind --------- Core Integrity 0/250 Matter 267/300 Energy 68/250 System Corruption 1% Temperature Cool (36) Movement Treading (180) Ox1 Location -10/Mines Parts ------- > --- POWER (1) -------- Ion Engine > --- PROPULSION (2) --- Light Treads Light Treads > --- UTILITY (2) ------ High-capacity Storage Unit High-capacity Storage Unit > --- WEAPON (2) ------- Particle Cannon Particle Cannon > --- INVENTORY (20) --- Light Treads Light Treads Medium Storage Unit Compact Battery (300) High-capacity Matter Pod (200) Advanced Signal Interpreter Light Armor Plating Light Armor Plating Light Armor Plating Hardened Medium Armor Plating Beamcaster Assault Rifle Mini Grenade Launcher Mini Grenade Launcher Mini Grenade Launcher Maul Peak State ------------ > --- POWER ------------ Ion Engine > --- PROPULSION ------- Light Treads Light Treads > --- UTILITY ---------- High-capacity Storage Unit High-capacity Storage Unit > --- WEAPON ----------- Beamcaster Light Assault Rifle > --- INVENTORY -------- Ion Engine Light Treads Light Treads Light Treads Light Treads Medium Storage Unit Compact Battery High-capacity Matter Pod Advanced Signal Interpreter Light Armor Plating Light Armor Plating Light Armor Plating Hardened Medium Armor Plating Particle Cannon Particle Cannon Assault Rifle Mini Grenade Launcher Mini Grenade Launcher Mini Grenade Launcher Maul [Rating: 14] Favorites ----------- Power Ion Engine Engine Ion Engine Propulsion Light Treads Treads Light Treads Utility High-capacity Storage Unit Storage High-capacity Storage Unit Processor Visual Processing Unit Weapon Light Assault Rifle Energy Gun Beamcaster Energy Cannon Particle Cannon Ballistic Gun Light Assault Rifle Launcher Mini Grenade Launcher Impact Weapon Maul Build | -11 -10 -10 ------- Run | Scr Mat Min Slots Evolved . | . . . Power . | . . . Propulsion . | . . . Utility . | . . . Weapon . | . . . Parts Attached 31 | 7 13 11 Power 2 | 1 . 1 Engine 2 | 1 . 1 Core . | . . . Reactor . | . . . Propulsion 5 | 2 1 2 Treads 5 | 2 1 2 Leg . | . . . Wheel . | . . . Hover . | . . . Flight . | . . . Utility 5 | 2 3 . Device . | . . . Storage 4 | 2 2 . Processor 1 | . 1 . Hackware . | . . . Protection . | . . . Artifact . | . . . Weapon 19 | 2 9 8 Energy Gun 1 | . . 1 Energy Cannon 10 | . 5 5 Ballistic Gun 4 | 2 2 . Ballistic Cannon . | . . . Launcher 3 | . 1 2 Special Weapon . | . . . Impact Weapon 1 | . 1 . Slashing Weapon . | . . . Piercing Weapon . | . . . Special Melee Weapon . | . . . Unidentified Prototypes . | . . . Parts Lost 5 | . 1 4 Power 1 | . . 1 Propulsion 3 | . 1 2 Utility . | . . . Weapon 1 | . . 1 Highest Loss Streak 4 | . 1 4 Average Slot Usage (%) 99 | . 100 99 Engine 14 | . 14 14 Treads 28 | . 28 28 Storage 22 | . 21 28 Processor 5 | . 6 . Energy Cannon 10 | . 10 8 Ballistic Gun 16 | . 17 14 Naked Turns . | . . . Heaviest Build 75 | 15 74 75 Greatest Support 40 | 40 40 40 Greatest Overweight (x) 1 | . 1 1 Average Overweight (x) . | . . 1 Largest Inventory Capacity 20 | 8 20 20 Average Capacity 15 | 5 15 20 Most Carried 20 | 4 20 20 Average Carried 14 | 2 14 19 Final Capacity 20 | 8 20 20 Final Carried 20 | 4 20 16 Class Distribution -------------------- 55% | Hauler-Mutant 44% | Mutant Dominant Class ---------------- Hauler-Mutant | -10/Materials Hauler-Mutant | -10/Mines Resources | -11 -10 -10 ----------- Run | Scr Mat Min Matter Collected 802 | 272 383 147 Remotely . | . . . Salvage Created 910 | 63 663 184 Parts 51 | 2 41 8 Haulers Intercepted 2 | . 2 . Recyclers Shooed 1 | . . 1 Parts Field Recycled . | . . . Retrieved Matter . | . . . Parts Self-Destructed . | . . . Prevented . | . . . Kills | -11 -10 -10 ------- Run | Scr Mat Min Combat Hostiles Destroyed 17 | . 11 6 Guns 2 | . 2 . Cannons 9 | . 6 3 AOE 6 | . 3 3 Classes Destroyed 7 | 1 6 . Worker 3 | . 3 . Tunneler 1 | . 1 . Hauler 2 | . 2 . Recycler 3 | 1 2 . Watcher 2 | . 2 . Swarmer 3 | . 3 . Grunt 14 | . 8 6 Best Kill Streak 4 | 1 4 2 Combat Bots Only 4 | . 4 2 Max Kills in Single Turn 2 | 1 2 1 Gunslinging . | . . . Exploded 2 | . 2 1 Melee . | . . . Uniques/NPCs Destroyed . | . . . Combat | -11 -10 -10 -------- Run | Scr Mat Min Damage Taken 1204 | . 339 865 Core 268 | . 57 211 Absorbed by Shields . | . . . Core Remaining (%) 100 | 100 . . Volleys Fired 77 | 1 52 24 Largest 2 | 2 2 2 Hottest 136 | 40 88 136 Shots Fired 138 | 2 101 35 Gun 70 | 2 58 10 Cannon 60 | . 41 19 Launcher 8 | . 2 6 Special . | . . . Kinetic 70 | 2 58 10 Thermal 60 | . 41 19 Explosive 8 | . 2 6 Electromagnetic . | . . . Robot Hit Streak 12 | 2 12 8 Robot Miss Streak 5 | . 5 3 Penetration Max . | . . . Secondary Targets . | . . . Shots Hit Robots 89 | 2 68 19 Core Hits 46 | 2 32 12 Critical Hits 1 | . 1 . Critical Kills . | . . . Critical Parts Destroyed 1 | . 1 . Melee Attacks 1 | . 1 . Impact 1 | . 1 . Slashing . | . . . Piercing . | . . . Sneak Attacks . | . . . Combat Hostiles . | . . . Follow-up Attacks . | . . . Damage Inflicted 1832 | 18 1177 637 Guns 414 | 18 333 63 Cannons 769 | . 512 257 Explosions 613 | . 296 317 Melee . | . . . Ramming 36 | . 36 . Kinetic 414 | 18 333 63 Thermal 769 | . 512 257 Explosive 613 | . 296 317 Electromagnetic . | . . . Impact . | . . . Slashing . | . . . Piercing . | . . . Highest Corruption 1 | . 1 1 Average Corruption 1 | . 1 1 Corruption Purged . | . . . Effects 1 | . 1 . Data Loss (minor) 1 | . 1 . Overload Shots . | . . . Overflow Damage 22 | . 22 . Projectiles 12 | . 12 . Explosions 10 | . 10 . Melee . | . . . Knockbacks . | . . . Impact . | . . . Kinetic . | . . . Secondary . | . . . Self-Inflicted Damage 58 | . 58 . Shots 2 | . 2 . Rammed 5 | . 5 . Targets Rammed 5 | . 5 . Kicked . | . . . Crushed . | . . . Highest Temperature 218 | . 208 218 Average Temperature 81 | . 76 94 Received Heat Transfer 258 | . 138 120 Effects 1 | . 1 . Energy Bleed 1 | . 1 . Siege Activations . | . . . Robots Corrupted . | . . . Combat Hostiles . | . . . Parts Fried . | . . . Impact Corruptions . | . . . Robots Melted . | . . . Combat Hostiles . | . . . Parts Melted 2 | . 2 . Heat Transferred 1443 | . 999 444 Parts Sabotaged . | . . . Parts Stolen . | . . . Parts Stripped . | . . . Power Chain Reactions . | . . . Missiles Intercepted . | . . . Alert | -11 -10 -10 ------- Run | Scr Mat Min Peak Influence 305 | 5 305 146 Initial 6 | . 3 6 Average 105 | . 112 101 Maximum Alert Level 1 | . 1 . Low Security (%) 84 | 100 80 100 Level 1 15 | . 19 . Level 2 . | . . . Level 3 . | . . . Level 4 . | . . . Level 5 . | . . . High Security . | . . . Max Security . | . . . Squads Dispatched 7 | . 6 1 Investigation 5 | . 4 1 Extermination . | . . . Reinforcement 2 | . 2 . Assault . | . . . Garrison . | . . . Intercept . | . . . Construction Impeded . | . . . Haulers Reinforced . | . . . Stealth | -11 -10 -10 --------- Run | Scr Mat Min Distress Signals . | . . . Communications Jammed . | . . . Distress Signals . | . . . Times Spotted 37 | . 29 8 Peak Tracking Total 4 | . 4 2 Tactical Retreats 4 | . 4 . Traps | -11 -10 -10 ------- Run | Scr Mat Min Traps Triggered 1 | . 1 . Indirectly . | . . . Trap Hack Attempts . | . . . Triggered . | . . . Disarmed . | . . . Reprogrammed 6 | . 6 . Reused 4 | . 4 . Traps Extracted . | . . . Installed . | . . . Triggered 4 | . 4 . Machines | -11 -10 -10 ---------- Run | Scr Mat Min Machines Disabled 1 | . 1 . Max in Single Turn 1 | . 1 . Machines Sabotaged . | . . . Garrisons Compromised . | . . . Overloaded Fab Kills . | . . . Fab Network Shutdowns . | . . . Hacking | -11 -10 -10 --------- Run | Scr Mat Min Machines Accessed 9 | . 8 1 Terminals 6 | . 6 . Fabricators . | . . . Repair Stations . | . . . Recycling Units 2 | . 2 . Scanalyzers . | . . . Garrison Access . | . . . Total Hacks 28 | . 27 1 Successful 16 | . 15 1 Failed 11 | . 11 . Catastrophic 1 | . 1 . Database Lockouts 1 | . 1 . Manual 18 | . 18 . Terminals 23 | . 23 . Fabricators . | . . . Repair Stations . | . . . Recycling Units 4 | . 4 . Scanalyzers . | . . . Garrison Access . | . . . Terminal Hacks 12 | . 11 1 Part Schematic 1 | . 1 . Robot Analysis 2 | . 2 . Prototype ID Bank 3 | . 3 . Open Door 1 | . . 1 Unreport Threat 1 | . 1 . Locate Traps 2 | . 2 . Reprogram Traps 2 | . 2 . Fabricator Hacks . | . . . Repair Station Hacks . | . . . Recycling Unit Hacks 2 | . 2 . Retrieve Components 2 | . 2 . Scanalyzer . | . . . Garrison Access Hacks . | . . . Unauthorized Hacks 2 | . 2 . Terminals . | . . . Fabricators . | . . . Repair Stations . | . . . Recycling Units 2 | . 2 . Tunnel 2 | . 2 . Scanalyzers . | . . . Garrison Access . | . . . Data Cores Recovered . | . . . Used . | . . . Hacking Detections 7 | . 7 . Full Trace Events 3 | . 3 . Feedback Events 1 | . 1 . Corruption 1 | . 1 . Feedback Blocked . | . . . Robot Schematics Acquired . | . . . Robots Built . | . . . Matter . | . . . Time . | . . . Total Robot Build Rating . | . . . Part Schematics Acquired 1 | . 1 . Parts Built . | . . . Matter . | . . . Time . | . . . Total Part Build Rating . | . . . Parts Repaired . | . . . Time . | . . . Parts Recycled . | . . . Recycled Matter . | . . . Retrieved Matter . | . . . Retrieved Components 14 | . 14 . Parts Scanalyzed . | . . . Part Schematics Acquired . | . . . Parts Damaged . | . . . Bothacking | -11 -10 -10 ------------ Run | Scr Mat Min Used RIF Installer . | . . . Robots Hacked . | . . . Non-combat . | . . . Combat . | . . . Robot Hacks Applied . | . . . Relay Couplers Released . | . . . Robots Rewired . | . . . Allies Hacked . | . . . Hacks Repelled . | . . . Allies | -11 -10 -10 -------- Run | Scr Mat Min Total Allies . | . . . Largest Group . | . . . Highest-Rated Group . | . . . Highest-Rated Ally . | . . . Total Orders . | . . . Ally Attacks . | . . . Total Damage . | . . . Kills . | . . . Allies Corrupted . | . . . Allies Melted . | . . . Intel | -11 -10 -10 ------- Run | Scr Mat Min Robot Analysis Total 2 | . 2 . Derelict Logs Recovered 1 | . . 1 Drone Launches . | . . . Drone Recoveries . | . . . Exploration | -11 -10 -10 ------------- Run | Scr Mat Min Turns Passed 1817 | 95 1425 297 Spaces Moved 854 | 52 680 122 Core 5 | 5 . . Treads 849 | 47 680 122 Legs . | . . . Wheels . | . . . Hover . | . . . Flight . | . . . Fastest Speed 50 | 50 160 180 Average Speed 173 | 149 174 180 Slowest Speed 180 | 160 180 180 Overloaded Moves . | . . . Propulsion Burnouts . | . . . Robots Hopped . | . . . Cave-ins Triggered . | . . . Exploration Rate (%) 41 | 4 78 43 Regions Visited 2 Branch Regions 1 Pre-discovered Areas 3 | . 2 1 Known Exits Taken . | . . . Unknown Exits Taken 2 | 1 1 . Scrap Searched . | . . . Spaces Dug 35 | . 13 22 Terrain Destroyed 74 | . 25 49 Melee 1 | . 1 . Projectile . | . . . AOE 73 | . 24 49 Terrain Rammed . | . . . Walls Destroyed . | . . . Machines Disabled . | . . . Actions | -11 -10 -10 --------- Run | Scr Mat Min Total 1057 | 64 825 168 Wait 41 | 1 36 4 Move 852 | 51 679 122 Hop . | . . . Pick Up 32 | 4 25 3 Fast Attach 11 | 7 3 1 Attach 5 | . 1 4 Detach 3 | . 3 . Swap 15 | . 9 6 Drop 15 | . 11 4 Fire 77 | 1 52 24 Melee 1 | . 1 . Ram . | . . . Kick . | . . . Crush 5 | . 5 . Escape Stasis . | . . . Rewire . | . . . Trap . | . . . Miscellaneous . | . . . Route ------- -11/Scrapyard -10/Materials (discovered 3 exits: [*Mat x2] / *Min) -10/Mines (discovered 2 exits: [*Mat x2]) History --------- Turn | Location | Event 9 | -11/Scrapyard | Discovered new exit (range 14) 96 | -11/Scrapyard | Entered Materials 318 | -10/Materials | Build established: Mutant 709 | -10/Materials | Discovered new exit (range 18) 928 | -10/Materials | Discovered new exit (range 8) 1083 | -10/Materials | Discovered new exit (range 13) 1087 | -10/Materials | Central database locked down 1110 | -10/Materials | Build established: Hauler-Mutant 1521 | -10/Materials | Entered Mines 1656 | -10/Mines | Met a Derelict shopkeep closing up shop 1715 | -10/Mines | Discovered new exit (range 15) 1753 | -10/Mines | Discovered new exit (range 10) 1792 | -10/Mines | Assembled infested the area 1807 | -10/Mines | Core integrity fell below 50% 1813 | -10/Mines | Core integrity fell below 20% 1818 | -10/Mines | Destroyed by D-53 Grenadier with Mini Grenade Launcher Last Messages --------------- 01737_ U-05 Engineer builds a Wall. 01738_ K-01 Serf collects debris. 01742_ U-05 Engineer lays Concrete. 01748_ U-05 Engineer builds a Wall. 01753_ Acquired derelict log, extracted data. World map updated: -10/Materials. 01753_ EXIT=FOUND 01777_ K-01 Serf collects debris. 01792_ ALERT: Infestation in the mines, dispatching Demolisher response squad. 01803_ C-30 ARC bursts open, deploying its payload. 01803_ D-53 Grenadier unfolds itself. 01803_ R-06 Scavenger destroyed. 01804_ K-01 Serf collects debris. 01807_ The unstable cave ceiling collapses. 01807_ Lgt. Treads destroyed. 01809_ Ion Engine destroyed. 01810_ Lgt. Treads destroyed. 01810_ K-01 Serf collects debris. 01814_ Lgt. Assault Rifle destroyed. Map ----- +----------------------------------------------------+ | ?????????????????????????????????????????????????? | | ?????????????????????????????????????????????????? | | ?????????????????????????????????????????????????? | | ?????????????????????????????????????????????????? | | ?????????????????????????????????????????????????? | | ?????????????????????????????????????????????????? | | ??????????????????????# ???????????????????????? | | ?????????????????????# ???????????????????????? | | ?????????????????????# #??????????????????????? | | ?????????????????????# #?????????????????????? | | ?????????????????????# ?????????????????????? | | ?????????????????????# ?????????????????????? | | ??????????????????????# ?????????????????????? | | ???????????????????????# #????????????????????? | | ????????????????????????# #????????????????????? | | ?????????????????????????# ##???????????????????? | | ?????????????????????????# ##?####?????????????? | | ?????????????????????????# ### ####??????????? | | ??????????????????????????# ##?????????? | | ??????????????????????????# #?????????? | | ??????????????????????##### #?????????? | | ?????????????????????## ##?????????? | | ????????????????????## ############# | | ????????????????????# d k ## | | ????????????????????# d %k## | | ????????????????????# @ ## ## < ? | | ????????????????????# ### ## """? | | ??????????????####??# #?# ## """? | | ?????????????? ? ### ## """ | | ??????????????# ###### ## | | ??????????????# #????###### ## """ """ | | ??????????????# #?????????## ### ## """ "??? | | ?????????????## ##?????????## ##?# ## """ "??? | | ????????????## ! #??????????####??# ## ??? | | ???????????## #????????????????# ## ?? | | ???????????# ! #???######???????# ############? | | ???????????# = ##### ##??????# #???????????# | | ????????????# ! ######?# #?????????? # | | #???????????### ## ### #?##?????? | | ???????####??# ###### ## ## ###### | | ???????? #??# #????## # = | | #????????# #??# #?????## ### #### =% | | #???????## #### #??????########## ! | | ##??????# #???????????##""## ] =*%= | | ####???# #######???????????#" ! # #####[ ### | | ##??# #?????????????????#"!] # ## ##?? | | #??# ###???????????????#"= # # #??? | | #???# ##??????????????#" ! #X # ## # #??? | | #???# #??????????????##""## ###??# #?? | | #???# #???????????????##### #???? #? | +----------------------------------------------------+ Best States ------------- Heat Dissipation 25 Energy Generation 10 Energy Capacity 250 Matter Stores 300 Matter Capacity 300 Sight Range 18 Terrain Scan Density 10 Evasion (%) 40 Recoil Reduction 2 Item Schematics ----------------- Lrg. Storage Unit | -10/Materials | Hacked Robot Schematics ------------------ None Fabricated ------------ Nothing Alien Tech Used ----------------- None Achievements -------------- None Challenges ------------ None Game ------ Seed TractorSmallProjector Manual? 0 Play Time 00:10:14 Cumulative 735.7 hours Start 2021.01.10 @ 22:20:07 End 2021.01.10 @ 22:30:24 Sessions 1 Manual Loads 0 Difficulty Rogue Special Mode None Game No. 527 Rogue 523 Adventurer 4 Explorer 0 Win Type - Total 81 Types 63/8/3/3/2/0/0/1/1 Lore% 94 Gallery% 97 Achievement% 96 Wizard Run 0 Options --------- ASCII 0 Keyboard 1 Movement Vi Keybinds 0 Fullscreen 0 Font 16/Terminus Map View 76x50 Tactical HUD 1 Map Filters NONE Filters NONE Steam 1 RUN: 041c7756-0c95-49ee-aa64-777bb9af5f54